fUST/lending_fUST_20250701
["ID","MTS","AMOUNT","RATE_DAILY","PERIOD"]
[368774591,1751358644490,-480.22,0.00020402,2]
[368774592,1751358644499,-460.0,0.00020402,2]
[368774593,1751358644509,-2176.73,0.00020402,2]
[368774594,1751358644519,-460.0,0.00020402,2]
[368774595,1751358644528,-500.0,0.0002041,2]
[368774596,1751358644538,-716.195754,0.00020414,2]
[368774597,1751358644548,-363.0,0.00020437,2]
[368774598,1751358644558,-243.73675996,0.00020444,2]
[368774599,1751358644567,-500.0,0.00020444,2]
[368774600,1751358644577,-500.0,0.00020444,2]
[368774601,1751358644587,-744.62095778,0.00020469,2]
[368774602,1751358644597,-1000.0,0.000205,2]
[368774603,1751358644606,-1000.0,0.000205,2]
[368774604,1751358644616,-1000.0,0.000205,2]
[368774605,1751358644625,-363.726,0.00020505,2]
[368774606,1751358644634,-570.42696254,0.00020521,3]
[368774607,1751358644644,-1000.0,0.0002055,2]
[368774608,1751358644653,-1095.47,0.00020576,2]
[368774609,1751358644662,-793.57,0.00020576,2]
[368774610,1751358644672,-834.4,0.00020576,2]
[368774611,1751358644682,-971.83,0.00020576,2]
[368774612,1751358644692,-966.84,0.00020576,2]
[368774613,1751358644701,-675.82,0.00020576,2]
[368774614,1751358644711,-364.57,0.00020576,2]
[368774615,1751358644722,-1048.64,0.00020576,2]
[368774616,1751358644731,-692.04,0.00020576,2]
[368774617,1751358644741,-403.67711116,0.00020577,2]
[368774618,1751358644751,-460.0,0.00020577,2]
[368774619,1751358644760,-1744.48,0.00020577,2]
[368774620,1751358644771,-460.0,0.00020577,2]
[368774621,1751358644781,-460.0,0.00020577,2]
[368774622,1751358644791,-471.28,0.00020577,2]
[368774623,1751358644801,-502.53,0.00020577,2]
[368774624,1751358644810,-1856.58,0.000206,2]
[368774625,1751358644820,-1000.0,0.000206,2]
[368774626,1751358644830,-460.0,0.00020676,2]
[368774627,1751358644841,-460.0,0.00020676,2]
[368774628,1751358644853,-710.13,0.00020676,2]
[368774629,1751358644862,-480.22,0.00020676,2]
[368774630,1751358644872,-460.0,0.00020676,2]
[368774631,1751358644882,-2176.73,0.00020676,2]
[368774632,1751358644892,-301.35,0.00020676,2]
[368774633,1751358644901,-570.42696254,0.00020728,3]
[368774634,1751358644911,-1095.47,0.0002085,2]
[368774635,1751358644922,-793.57,0.0002085,2]
[368774636,1751358644931,-834.4,0.0002085,2]
[368774637,1751358644941,-971.83,0.0002085,2]
[368774638,1751358644950,-966.84,0.0002085,2]
[368774639,1751358644960,-675.82,0.0002085,2]
[368774640,1751358644969,-1048.64,0.0002085,2]
[368774641,1751358644978,-692.04,0.0002085,2]
[368774642,1751358644988,-303.02582457,0.00020851,2]
[368774643,1751358644998,-1744.48,0.00020851,2]
[368774644,1751358645007,-460.0,0.00020851,2]
[368774645,1751358645017,-460.0,0.00020851,2]
[368774646,1751358645027,-471.28,0.00020851,2]
[368774647,1751358645036,-502.53,0.00020851,2]
[368774648,1751358645045,-5000.0,0.00020907,2]
[368774649,1751358645055,-150.0,0.00020924,2]
[368774650,1751358645064,-2365.8678631,0.00020931,2]
[368774651,1751358645074,-570.42696254,0.00020934,4]
[368774652,1751358645083,-460.0,0.0002095,2]
[368774653,1751358645093,-270.11,0.0002095,2]
[368774654,1751358645102,-710.13,0.0002095,2]
[368774655,1751358645111,-480.22,0.0002095,2]
[368774656,1751358645121,-460.0,0.0002095,2]
[368774657,1751358645130,-2176.73,0.0002095,2]
[368774658,1751358645140,-512.87939297,0.00020992,2]
[368774659,1751358645149,-1000.0,0.00020992,2]
[368774660,1751358645159,-21833.27581552,0.00021,2]
[368774661,1751358645408,-460.0,0.0001811,2]
[368774662,1751358645418,-460.0,0.00018111,2]
[368774663,1751358645428,-460.0,0.00018384,2]
[368774664,1751358645438,-456.72884522,0.00018385,2]
[368774665,1751358645450,-3.27115478,0.00018385,2]
[368774666,1751358645460,-391.64,0.00018658,2]
[368774667,1751358645470,-460.0,0.00018659,2]
[368774669,1751358645480,-460.0,0.00018933,2]
[368774671,1751358645490,-460.0,0.00019207,2]
[368774672,1751358645500,-51166.72418348,0.00021,2]
[368774673,1751358645510,-966.0,0.00021102,2]
[368774674,1751358645519,-1095.47,0.00021124,2]
[368774675,1751358645529,-793.57,0.00021124,2]
[368774676,1751358645540,-834.4,0.00021124,2]
[368774677,1751358645549,-971.83,0.00021124,2]
[368774678,1751358645560,-966.84,0.00021124,2]
[368774679,1751358645570,-675.82,0.00021124,2]
[368774680,1751358645579,-1048.64,0.00021124,2]
[368774681,1751358645590,-692.04,0.00021124,2]
[368774682,1751358645600,-1744.48,0.00021125,2]
[368774683,1751358645610,-460.0,0.00021125,2]
[368774684,1751358645619,-460.0,0.00021125,2]
[368774685,1751358645629,-471.28,0.00021125,2]
[368774686,1751358645638,-502.53,0.00021125,2]
[368774687,1751358645648,-570.42696254,0.00021141,4]
[368774688,1751358645658,-10566.96406666,0.000212,30]
[368774689,1751358645668,-213.87551669,0.000212,30]
[368774690,1751358645678,-460.0,0.00021224,2]
[368774691,1751358645687,-710.13,0.00021224,2]
[368774692,1751358645697,-480.22,0.00021224,2]
[368774693,1751358645707,-460.0,0.00021224,2]
[368774694,1751358645717,-2176.73,0.00021224,2]
[368774695,1751358645727,-1426.71,0.000213,2]
[368774696,1751358645738,-163.0,0.000213,14]
[368774697,1751358645748,-164.0,0.000213,15]
[368774698,1751358645757,-999.04523017,0.0002132,2]
[368774699,1751358645767,-2365.8678632,0.00021337,2]
[368774700,1751358645776,-570.42696254,0.00021348,5]
[368774701,1751358645786,-1095.47,0.00021398,2]
[368774702,1751358645796,-793.57,0.00021398,2]
[368774703,1751358645805,-834.4,0.00021398,2]
[368774704,1751358645815,-971.83,0.00021398,2]
[368774705,1751358645825,-966.84,0.00021398,2]
[368774706,1751358645835,-675.82,0.00021398,2]
[368774707,1751358645848,-1048.64,0.00021398,2]
[368774708,1751358645858,-692.04,0.00021398,2]
[368774709,1751358645869,-1744.48,0.00021399,2]
[368774710,1751358645879,-460.0,0.00021399,2]
[368774711,1751358645890,-460.0,0.00021399,2]
[368774712,1751358645900,-471.28,0.00021399,2]
[368774713,1751358645909,-502.53,0.00021399,2]
[368774714,1751358645919,-151.0,0.000214,3]
[368774715,1751358645930,-12500.0,0.00021465,2]
[368774716,1751358645941,-2662.58522685,0.00021474,2]
[368774717,1751358646071,5000.0,0.000181,2]
[368774718,1751358646093,-483.53241979,0.00018111,2]
[368774719,1751358646103,-460.0,0.00018111,2]
[368774720,1751358646114,-460.0,0.0001821,2]
[368774721,1751358646124,-460.0,0.00018385,2]
[368774722,1751358646136,-460.0,0.00018484,2]
[368774723,1751358646147,-460.0,0.00018659,2]
[368774724,1751358646156,-460.0,0.00018933,2]
[368774725,1751358646165,-421.21757921,0.00019207,2]
[368774726,1751358646177,-6.14242079,0.00019207,2]
[368774727,1751358646187,-460.0,0.00019481,2]
[368774728,1751358646196,-460.0,0.00019755,2]
[368774729,1751358646206,-151.0,0.0002,2]
[368774730,1751358646215,-241.25756721,0.00020029,2]
[368774731,1751358646231,-218.74243279,0.00020029,2]
[368774732,1751358646241,-136.59291177,0.00020303,2]
[368774733,1751358646253,-347.98708823,0.00020303,2]
[368774734,1751358646263,-9837.41477315,0.00021474,2]
[368774735,1751358646273,-12500.0,0.00021482,2]
[368774736,1751358646284,-6502.51676809,0.00021489,4]
[368774737,1751358646296,-393.55482928,0.00021489,4]
[368774738,1751358646578,-460.0,0.0001821,2]
[368774739,1751358646588,-460.0,0.00018484,2]
[368774740,1751358646598,-460.0,0.00018758,2]
[368774741,1751358646608,-460.0,0.00019032,2]
[368774742,1751358646617,-366.39,0.00019306,2]
[368774743,1751358646627,-2286.46,0.0002099,10]
[368774744,1751358646636,-9434.35863073,0.00021489,4]
[368774745,1751358646648,-2432.69984497,0.00021489,4]
[368774746,1751358647741,-687.63105915,0.00021489,4]
[368774747,1751358647752,-232066.90831778,0.00021489,4]
[368774748,1751358647762,-406.0,0.0002149,2]
[368774749,1751358647772,-12500.0,0.00021491,2]
[368774750,1751358647782,-460.0,0.00021498,2]
[368774751,1751358647792,-710.13,0.00021498,2]
[368774752,1751358647802,-460.0,0.00021498,2]
[368774753,1751358647811,-2176.73,0.00021498,2]
[368774754,1751358647821,-159.07174265,0.00021499,2]
[368774755,1751358647830,-274.6,0.000215,2]
[368774756,1751358647840,-12500.0,0.000215,2]
[368774757,1751358647853,-12494.80655354,0.000215,2]
[368774758,1751358647862,-151.0,0.000215,2]
[368774759,1751358647872,-101.31786758,0.0002154,2]
[368774760,1751358647884,-354.66732368,0.0002154,2]
[368774761,1751358647896,-1044.01480874,0.0002154,2]
[368774762,1751358647905,-587.0,0.00021545,2]
[368774763,1751358647914,-570.42696254,0.00021555,5]
[368774764,1751358647923,-1657.09659948,0.00021589,4]
[368774765,1751358657763,5000.0,0.000181,2]
[368774767,1751358665727,173.65124443,0.0001801,2]
[368774768,1751358668103,9425.56606637,0.00018012,2]
[368774769,1751358668244,20000.0,0.00018012,2]
[368774770,1751358668269,20000.0,0.00018012,2]
[368774771,1751358668293,20000.0,0.00018012,2]
[368774772,1751358668316,20000.0,0.00018012,2]
[368774773,1751358668339,20000.0,0.00018012,2]
[368774774,1751358668362,20000.0,0.00018012,2]
[368774775,1751358668384,20000.0,0.00018012,2]
[368774776,1751358668407,20000.0,0.00018012,2]
[368774777,1751358668429,20000.0,0.00018012,2]
[368774778,1751358668452,20000.0,0.00018012,2]
[368774779,1751358668475,20000.0,0.00018012,2]
[368774780,1751358668498,20000.0,0.00018012,2]
[368774781,1751358673081,5000.0,0.00018,2]
[368774782,1751358673805,-304.83562724,0.00018012,2]
[368774783,1751358680655,-219.28612521,0.00018012,2]
[368774784,1751358684951,-176.0291421,0.00018012,2]
[368774785,1751358688198,-243.05113097,0.00018012,2]
[368774786,1751358689090,5000.0,0.00018,2]
[368774787,1751358696379,-299.91311905,0.00018012,2]
[368774788,1751358698743,-179.17117521,0.00018012,2]
[368774789,1751358701265,-172.35929982,0.00018012,2]
[368774790,1751358704310,-157.20715644,0.00018012,2]
[368774791,1751358704339,4298.38288677,0.00018,2]
[368774792,1751358704362,701.61711323,0.00018,2]
[368774793,1751358707596,-229.53296265,0.00018012,2]
[368774794,1751358710401,-188.78716171,0.00018012,2]
[368774795,1751358714758,-196.26695015,0.00018012,2]
[368774796,1751358718023,-258.72718635,0.00018012,2]
[368774797,1751358720221,5000.0,0.00018,2]
[368774798,1751358721129,-177.93854795,0.00018012,2]
[368774800,1751358726204,-267.05460744,0.00018012,2]
[368774801,1751358729800,-221.63119881,0.00018012,2]
[368774802,1751358732284,-163.08417994,0.00018012,2]
[368774803,1751358735520,5000.0,0.00018,2]
[368774804,1751358735936,-254.0251002,0.00018012,2]
[368774805,1751358740409,-178.16576123,0.00018012,2]
[368774806,1751358747086,-160.59957841,0.00018012,2]
[368774807,1751358749845,-159.40526469,0.00018012,2]
[368774808,1751358751097,5000.0,0.00018,2]
[368774809,1751358751567,-171.53104544,0.00018012,2]
[368774810,1751358758127,-200.0,0.00018012,2]
[368774811,1751358760120,-200.0,0.00018011,2]
[368774812,1751358762715,-339.60574898,0.00018011,2]
[368774813,1751358765102,173.65124441,0.00017911,2]
[368774814,1751358765378,-21.88974985,0.00018011,2]
[368774815,1751358765406,-218.82412494,0.00018011,2]
[368774816,1751358765909,173.65124441,0.0001796,2]
[368774817,1751358766595,5000.0,0.00018,2]
[368774819,1751358783372,5000.0,0.00018,2]
[368774821,1751358790407,274.6,0.00025209,120]
[368774822,1751358799828,3951.08039795,0.00018,2]
[368774823,1751358799851,1048.91960205,0.00018,2]
[368774824,1751358810817,274.6,0.00025209,120]
[368774825,1751358812917,614.06291532,0.00017472,2]
[368774826,1751358814962,5000.0,0.00018,2]
[368774827,1751358830701,274.6,0.00025209,120]
[368774828,1751358830818,5000.0,0.00018,2]
[368774829,1751358831713,153.32499634,0.00017911,2]
[368774830,1751358848373,5000.0,0.00018,2]
[368774831,1751358855463,13183.69248629,0.00017058,2]
[368774832,1751358855486,11716.30751371,0.00017058,2]
[368774833,1751358862669,173.65124441,0.00017911,2]
[368774834,1751358863908,5000.0,0.00018,2]
[368774836,1751358879906,5000.0,0.00018,2]
[368774839,1751358895490,5000.0,0.00018,2]
[368774841,1751358911116,3110.04124188,0.00018,2]
[368774842,1751358911141,1889.95875812,0.00018,2]
[368774843,1751358912995,222.184948,0.0001717,2]
[368774844,1751358913196,222.184948,0.0001717,120]
[368774845,1751358927879,5000.0,0.00018,2]
[368774846,1751358930543,200.0,0.00023976,120]
[368774847,1751358943061,5000.0,0.00018,2]
[368774848,1751358956847,2748.8683932,0.0001717,2]
[368774849,1751358960891,5000.0,0.00018,2]
[368774851,1751358976761,5000.0,0.00018,2]
[368774852,1751358992870,5000.0,0.00018,2]
[368774853,1751359008976,138.98790068,0.00018,2]
[368774854,1751359008999,4861.01209932,0.00018,2]
[368774856,1751359025310,5000.0,0.00018,2]
[368774859,1751359040485,5000.0,0.00018,2]
[368774860,1751359055779,5000.0,0.00018,2]
[368774862,1751359077137,5000.0,0.00018,2]
[368774868,1751359095779,5000.0,0.00018,2]
[368774871,1751359114309,138.98790068,0.00018,2]
[368774872,1751359114331,4861.01209932,0.00018,2]
[368774873,1751359114622,247.527624,0.00017469,2]
[368774874,1751359115371,736.00391395,0.00017471,2]
[368774875,1751359116146,338.2112,0.00017471,2]
[368774877,1751359129963,5000.0,0.00018,2]
[368774878,1751359145631,5000.0,0.00018,2]
[368774881,1751359160867,5000.0,0.00018,2]
[368774882,1751359161942,8817.24516273,0.00017034,2]
[368774883,1751359161966,12730.25527217,0.00017034,2]
[368774884,1751359178555,5000.0,0.00018,2]
[368774885,1751359194678,5000.0,0.00018,2]
[368774887,1751359210130,5000.0,0.00018,2]
[368774888,1751359226028,2269.74472783,0.00018,2]
[368774889,1751359236682,-241.03639327,0.00018,2]
[368774891,1751359238611,-163.89413252,0.00018,2]
[368774893,1751359246549,22895.360998,0.00017011,2]
[368774894,1751359246571,10267.6924057,0.00017011,2]
[368774907,1751359391709,10000.0,0.0001701,2]
[368774912,1751359424409,636.199652,0.00013699,2]
[368774913,1751359448261,1954.140756,0.00016994,2]
[368774915,1751359467138,676.2003656,0.00016994,2]
[368774920,1751359500302,-211.203215,0.0001746,2]
[368774921,1751359500325,-17.93829022,0.00017468,2]
[368774923,1751359503922,-152.0,0.00017468,2]
[368775128,1751359536794,-55.53073305,0.00017468,2]
[368775129,1751359536815,-103.10373377,0.00017732,2]
[368775133,1751359540615,-233.83001848,0.00017732,2]
[368775140,1751359542136,-706.46203683,0.00017732,2]
[368775174,1751359565200,-287.99077554,0.00017732,2]
[368775179,1751359567212,203.1676544,0.00017009,2]
[368775180,1751359567784,-183.32674217,0.00017732,2]
[368775181,1751359572272,-200.597845,0.00017732,2]
[368775185,1751359649093,-1896.38634673,0.00017732,2]
[368775186,1751359688691,181.2169568,0.00017009,2]
[368775194,1751359753083,-3103.61365327,0.00017732,2]
[368775195,1751359753103,-84.62034673,0.00017811,2]
[368775197,1751359755089,-68.70464961,0.00017811,2]
[368775198,1751359755109,-995.93,0.00018002,3]
[368775199,1751359755130,-497.97,0.00018002,3]
[368775200,1751359755149,-248.98,0.00018002,3]
[368775201,1751359755170,-746.98,0.00018002,3]
[368775202,1751359755190,-300.0,0.00018005,2]
[368775203,1751359755211,-1200.0,0.00018006,2]
[368775204,1751359755231,-170.667793,0.00018006,2]
[368775207,1751359765132,-4906.27921944,0.00017826,2]
[368775208,1751359767082,1850.3735828,0.00017011,2]
[368775213,1751359808290,-93.72078056,0.00017826,2]
[368775214,1751359808313,-100.24427331,0.00018006,2]
[368775216,1751359812424,-266.17612128,0.00018006,2]
[368775224,1751359832024,-3446.8251939,0.00017731,2]
[368775229,1751359832078,-1553.1748061,0.00017731,2]
[368775230,1751359832088,-1588.04598211,0.0001791,2]
[368775231,1751359832099,-662.91181241,0.00018006,2]
[368775232,1751359832108,-300.0,0.00018008,2]
[368775233,1751359832118,-300.0,0.00018008,2]
[368775234,1751359832128,-300.0,0.00018008,2]
[368775235,1751359832137,-300.0,0.00018008,2]
[368775236,1751359832147,-300.0,0.00018008,2]
[368775237,1751359832156,-90.22266461,0.00018008,2]
[368775238,1751359832173,-525.77733539,0.00018008,2]
[368775239,1751359832183,-385.91843248,0.00018009,2]
[368775240,1751359832192,-460.0,0.00018009,2]
[368775241,1751359832202,-460.0,0.00018009,2]
[368775242,1751359832211,-460.0,0.00018009,2]
[368775243,1751359832220,-58.30423213,0.00018009,2]
[368775245,1751359832234,-321.06130044,0.00018009,2]
[368775253,1751359838147,-134.65683756,0.00018009,2]
[368775254,1751359838157,-320.52565788,0.00018009,2]
[368775255,1751359838169,-139.47434212,0.00018009,2]
[368775256,1751359838178,-460.0,0.00018009,2]
[368775257,1751359838187,-460.0,0.00018009,2]
[368775258,1751359838196,-308.36983827,0.00018009,2]
[368775259,1751359838208,-151.63016173,0.00018009,2]
[368775260,1751359838217,-1054.93,0.00018009,2]
[368775261,1751359838227,-460.0,0.00018009,2]
[368775262,1751359838236,-1016.28236108,0.00018009,2]
[368775263,1751359838246,-460.0,0.00018009,2]
[368775264,1751359838255,-460.0,0.00018009,2]
[368775265,1751359838265,-206.48070568,0.00018009,2]
[368775266,1751359838290,-376.40683312,0.00018009,2]
[368775267,1751359838299,-460.0,0.00018009,2]
[368775268,1751359838308,-500.0,0.00018009,2]
[368775269,1751359838318,-500.0,0.00018009,2]
[368775270,1751359838327,-500.0,0.00018009,2]
[368775271,1751359838336,-439.53363309,0.00018009,2]
[368775272,1751359838346,-396.30635278,0.00018009,2]
[368775273,1751359838355,-460.0,0.0001801,2]
[368775274,1751359838364,-460.0,0.0001801,2]
[368775275,1751359838374,-460.0,0.0001801,2]
[368775277,1751359838383,-483.8118529,0.0001801,2]
[368775279,1751359838393,-460.0,0.0001801,2]
[368775281,1751359838405,-460.0,0.0001801,2]
[368775282,1751359838415,-460.0,0.0001801,2]
[368775285,1751359838424,-460.0,0.0001801,2]
[368775287,1751359838435,-460.0,0.0001801,2]
[368775289,1751359838445,-460.0,0.0001801,2]
[368775291,1751359838454,-460.0,0.0001801,2]
[368775292,1751359838464,-460.0,0.0001801,2]
[368775294,1751359838476,-460.0,0.0001801,2]
[368775295,1751359838486,-460.0,0.0001801,2]
[368775296,1751359838496,-460.0,0.0001801,2]
[368775297,1751359838505,-460.0,0.0001801,2]
[368775298,1751359838515,-1523.74,0.0001801,2]
[368775299,1751359838524,-460.0,0.0001801,2]
[368775300,1751359838535,-318.92152463,0.0001801,2]
[368775301,1751359838545,-460.0,0.0001801,2]
[368775302,1751359838554,-396.13750865,0.0001801,2]
[368775303,1751359838564,-460.0,0.0001801,2]
[368775304,1751359838573,-460.0,0.0001801,2]
[368775305,1751359838583,-559.72981609,0.0001801,2]
[368775306,1751359838592,-460.0,0.0001801,2]
[368775307,1751359838604,-460.0,0.0001801,2]
[368775308,1751359838614,-395.39139421,0.0001801,2]
[368775309,1751359838625,-1061.09,0.0001801,2]
[368775310,1751359838635,-460.0,0.0001801,2]
[368775311,1751359838645,-460.0,0.0001801,2]
[368775312,1751359838655,-460.0,0.0001801,2]
[368775313,1751359838664,-500.0,0.0001801,2]
[368775314,1751359838674,-1278.26,0.0001801,2]
[368775315,1751359838684,-460.0,0.0001801,2]
[368775316,1751359838695,-460.0,0.0001801,2]
[368775317,1751359838705,-460.0,0.0001801,2]
[368775318,1751359838715,-460.0,0.0001801,2]
[368775319,1751359838724,-460.0,0.0001801,2]
[368775320,1751359838734,-349.53,0.0001801,2]
[368775321,1751359838743,-460.0,0.0001801,2]
[368775322,1751359838754,-460.0,0.0001801,2]
[368775324,1751359838764,-1172.88,0.0001801,2]
[368775325,1751359838773,-460.0,0.0001801,2]
[368775326,1751359838783,-460.0,0.0001801,2]
[368775327,1751359838793,-460.0,0.0001801,2]
[368775328,1751359838803,-1391.82,0.0001801,2]
[368775329,1751359838944,-460.0,0.0001801,2]
[368775330,1751359838955,-460.0,0.0001801,2]
[368775331,1751359838965,-460.0,0.0001801,2]
[368775332,1751359838974,-460.0,0.0001801,2]
[368775333,1751359838984,-195.66,0.0001801,2]
[368775334,1751359838993,-500.0,0.0001801,2]
[368775335,1751359839003,-460.0,0.0001801,2]
[368775336,1751359839014,-460.0,0.0001801,2]
[368775337,1751359839023,-784.03,0.0001801,2]
[368775338,1751359839032,-460.0,0.0001801,2]
[368775339,1751359839042,-460.0,0.0001801,2]
[368775340,1751359839052,-460.0,0.0001801,2]
[368775341,1751359839061,-460.0,0.0001801,2]
[368775342,1751359839070,-460.0,0.0001801,2]
[368775343,1751359839079,-460.0,0.0001801,2]
[368775344,1751359839088,-787.73,0.0001801,2]
[368775345,1751359839097,-460.0,0.0001801,2]
[368775346,1751359839107,-460.0,0.0001801,2]
[368775347,1751359839116,-460.0,0.0001801,2]
[368775348,1751359839127,-460.0,0.0001801,2]
[368775349,1751359839135,-460.0,0.0001801,2]
[368775350,1751359839144,-460.0,0.0001801,2]
[368775351,1751359839153,-460.0,0.0001801,2]
[368775352,1751359839163,-460.0,0.0001801,2]
[368775353,1751359839172,-460.0,0.0001801,2]
[368775354,1751359839181,-460.0,0.0001801,2]
[368775355,1751359839190,-460.0,0.0001801,2]
[368775356,1751359839200,-460.0,0.0001801,2]
[368775357,1751359839209,-460.0,0.0001801,2]
[368775358,1751359839218,-460.0,0.0001801,2]
[368775359,1751359839227,-460.0,0.00018011,2]
[368775360,1751359839236,-460.0,0.00018011,2]
[368775361,1751359839245,-460.0,0.00018011,2]
[368775362,1751359839254,-460.0,0.00018011,2]
[368775363,1751359839264,-460.0,0.00018011,2]
[368775364,1751359839272,-506.20016871,0.00018011,2]
[368775365,1751359839281,-460.0,0.00018011,2]
[368775366,1751359839291,-460.0,0.00018011,2]
[368775367,1751359839301,-245.0,0.00018011,2]
[368775368,1751359839310,-198.6111027,0.00018011,2]
[368775369,1751359839319,-152.11756079,0.00018011,2]
[368775370,1751359839328,-460.0,0.00018011,2]
[368775371,1751359839349,-460.0,0.00018011,2]
[368775372,1751359839359,-460.0,0.00018011,2]
[368775373,1751359839369,-460.0,0.00018011,2]
[368775374,1751359839380,-460.0,0.00018011,2]
[368775375,1751359839390,-151.0,0.00018011,2]
[368775376,1751359839404,-460.0,0.00018011,2]
[368775377,1751359839414,-460.0,0.00018011,2]
[368775378,1751359839424,-460.0,0.00018011,2]
[368775379,1751359839435,-460.0,0.00018011,2]
[368775380,1751359839445,-500.0,0.00018011,2]
[368775381,1751359839455,-500.0,0.00018011,2]
[368775382,1751359839465,-500.0,0.00018011,2]
[368775383,1751359839477,-500.0,0.00018011,2]
[368775384,1751359839487,-500.0,0.00018011,2]
[368775385,1751359839497,-500.0,0.00018011,2]
[368775386,1751359839508,-460.0,0.00018011,2]
[368775387,1751359839517,-460.0,0.00018011,2]
[368775388,1751359839527,-460.0,0.00018011,2]
[368775389,1751359839537,-460.0,0.00018011,2]
[368775390,1751359839547,-460.0,0.00018011,2]
[368775391,1751359839556,-460.0,0.00018011,2]
[368775392,1751359839566,-460.0,0.00018011,2]
[368775393,1751359839575,-460.0,0.00018011,2]
[368775394,1751359839585,-460.0,0.00018011,2]
[368775395,1751359839595,-460.0,0.00018011,2]
[368775396,1751359839604,-460.0,0.00018011,2]
[368775397,1751359839614,-460.0,0.00018011,2]
[368775398,1751359839624,-460.0,0.00018011,2]
[368775399,1751359839634,-460.0,0.00018011,2]
[368775400,1751359839643,-500.0,0.00018011,2]
[368775401,1751359839653,-460.0,0.00018011,2]
[368775402,1751359839663,-151.0,0.00018011,2]
[368775403,1751359839672,-500.0,0.00018011,2]
[368775404,1751359839682,-460.0,0.00018011,2]
[368775405,1751359839693,-1673.08,0.00018011,2]
[368775406,1751359839702,-460.0,0.00018011,2]
[368775407,1751359839712,-460.0,0.00018011,2]
[368775408,1751359839722,-460.0,0.00018011,2]
[368775409,1751359839732,-460.0,0.00018011,2]
[368775410,1751359839743,-466.84,0.00018011,2]
[368775411,1751359839754,-460.0,0.00018011,2]
[368775412,1751359839764,-460.0,0.00018011,2]
[368775413,1751359839774,-460.0,0.00018011,2]
[368775414,1751359839784,-460.0,0.00018011,2]
[368775415,1751359839794,-460.0,0.00018011,2]
[368775416,1751359839805,-460.0,0.00018011,2]
[368775417,1751359839815,-151.0,0.00018011,2]
[368775418,1751359839824,-460.0,0.00018011,2]
[368775419,1751359839834,-151.0,0.00018011,2]
[368775420,1751359839844,-460.0,0.00018011,2]
[368775421,1751359839856,-151.26659168,0.00018011,2]
[368775422,1751359839866,-208.01104724,0.00018011,2]
[368775423,1751359839876,-460.0,0.00018011,2]
[368775424,1751359839885,-151.0,0.00018011,2]
[368775425,1751359839895,-151.0,0.00018011,2]
[368775426,1751359839904,-115995.83161262,0.00018012,2]
[368775427,1751359839914,-500.0,0.00018038,2]
[368775428,1751359839924,-500.0,0.00018038,2]
[368775429,1751359839934,-151.0,0.00018038,2]
[368775430,1751359839944,-151.0,0.00018038,2]
[368775431,1751359839954,-151.0,0.00018038,2]
[368775432,1751359839964,-500.0,0.00018066,2]
[368775433,1751359839973,-396.0,0.00018066,2]
[368775434,1751359839983,-296.39966653,0.00018066,2]
[368775435,1751359839992,-151.0,0.00018066,2]
[368775436,1751359840002,-151.0,0.00018066,2]
[368775437,1751359840012,-243.73675996,0.00018073,2]